bitfinex-derivatives/quotes_ETHF0:USTF0_20210102
["timestamp","ask_amount","ask_price","bid_price","bid_amount"]
[1609619456232,0.03641223,770.47,770.38,6.01438]
[1609619456831,0.03641223,770.47,769.78,3.061]
[1609619457331,0.03641223,770.47,769.68,94.2498]
[1609619458234,6.01438,770.27,770.16,6.01438]
[1609619458435,9.47338,770.27,770.16,6.01438]
[1609619460438,0.07286997,770.17,770.16,6.01438]
[1609619461637,0.07286997,770.17,769.21,17.61150147]
[1609619462238,6.01438,769.67,769.41,6.01438]
[1609619462636,6.01438,769.67,769.21,17.61150147]
[1609619463258,6.01438,769.67,769.27,17.6190178]
[1609619464038,21.01438,769.67,769.27,17.6190178]
[1609619464239,6.01438,769.28,769.18,3.765]
[1609619464439,4.642,769.67,769.15,6.01438]
[1609619464638,4.642,769.67,769.15,10.41538]
[1609619466255,0.03624421,769.58,769.15,10.41538]
[1609619467540,0.03624421,769.58,769.15,6.01438]
[1609619468341,0.03624421,769.58,769.31,6.01438]
[1609619470141,0.03624421,769.58,769.57,6.01438]
[1609619470341,0.03624421,769.58,768.67,3.582]
[1609619472249,19.642,769.67,769.25,6.01438]
[1609619472250,6.01438,769.52,769.25,6.01438]
[1609619472951,21.01438,769.52,769.25,6.01438]
[1609619473151,21.01438,769.52,768.67,3.582]
[1609619473553,21.01438,769.52,768.65,106.89292656]
[1609619474152,6.01438,769.02,768.78,6.01438]
[1609619474354,9.86938,769.02,768.78,6.01438]
[1609619474556,9.86938,769.02,768.56,17.62808796]
[1609619475856,9.86938,769.02,768.38,17.63051927]
[1609619476255,3.855,769.02,769.01,6.01438]
[1609619479257,0.03613648,769.39,769.01,6.01438]
[1609619479858,0.03614375,769.43,769.01,6.01438]
[1609619480257,6.01438,769.39,769.1,6.01438]
[1609619480458,9.16238,769.39,769.1,6.01438]
[1609619482166,3.18413531,769.39,769.1,6.01438]
[1609619482365,3.18413531,769.39,769.29,6.01438]
[1609619483266,3.148,769.39,769.29,6.01438]
[1609619483865,15.0,769.38,768.65,3.512]
[1609619484265,6.01438,769.18,769.07,6.01438]
[1609619484466,10.48038,769.18,769.07,6.01438]
[1609619485167,4.466,769.18,769.07,6.01438]
[1609619486267,6.01438,769.15,769.07,6.01438]
[1609619486570,6.01438,769.15,768.65,3.512]
[1609619487168,6.01438,769.15,768.34,17.63126584]
[1609619487367,15.0,769.14,768.34,17.63126584]
[1609619488269,6.01438,768.82,768.58,6.01438]
[1609619490371,6.01438,768.71,768.58,6.01438]
[1609619490970,21.01438,768.71,768.14,17.63378412]
[1609619491375,21.01438,768.71,768.07,17.6361501]
[1609619492071,6.01438,768.71,768.07,17.6361501]
[1609619492472,6.01438,768.54,768.16,6.01438]
[1609619493480,3.945,768.85,768.16,6.01438]
[1609619493675,0.03600199,768.93,768.16,9.43038]
[1609619494475,0.03600199,768.93,768.63,6.01438]
[1609619495978,0.03603594,769.07,768.63,6.01438]
[1609619496177,0.03603594,769.07,768.34,3.93]
[1609619496377,6.01438,768.88,768.62,6.01438]
[1609619496576,10.80838,768.88,768.62,6.01438]
[1609619497578,4.794,768.88,768.62,6.01438]
[1609619498380,4.794,768.88,768.87,6.01438]
[1609619501481,4.794,768.88,768.34,3.93]
[1609619501981,6.01438,769.09,768.2,17.63380562]
[1609619502182,4.601,768.88,768.2,15.0]
[1609619502381,4.601,768.88,768.87,6.01438]
[1609619503983,4.466,769.18,768.87,6.01438]
[1609619504183,4.466,769.18,768.87,21.01438]
[1609619504383,0.03600524,769.34,769.17,6.01438]
[1609619504785,3.148,769.39,769.17,6.01438]
[1609619504984,2.6247,769.41,769.17,6.01438]
[1609619505183,2.6247,769.41,769.2,89.2558]
[1609619505887,4.10113276,769.57,769.2,89.2558]
[1609619505888,4.029,769.57,769.2,89.2558]
[1609619506385,4.029,769.57,769.56,6.01438]
[1609619506885,6.6275,769.57,769.56,6.01438]
[1609619507086,4.029,769.57,769.56,6.01438]
[1609619507688,6.6067,769.57,769.56,6.01438]
[1609619508289,4.029,769.57,769.56,6.01438]
[1609619509290,6.6301,769.57,769.56,6.01438]
[1609619509491,4.029,769.57,769.56,6.01438]
[1609619510492,6.615,769.57,769.56,6.01438]
[1609619510693,2.586,769.57,769.56,6.01438]
[1609619511091,0.03626182,769.75,769.56,6.01438]
[1609619511994,2.6285,769.74,769.56,6.01438]
[1609619512194,6.5315,769.74,769.56,6.01438]
[1609619512395,6.5315,769.74,769.73,6.01438]
[1609619512694,3.903,769.74,769.73,6.01438]
[1609619513995,0.03637147,770.04,769.73,6.01438]
[1609619514394,0.03637147,770.04,770.03,6.01438]
[1609619515196,4.10174294,770.08,770.03,6.01438]
[1609619515197,4.029,770.08,770.03,6.01438]
[1609619515395,2.5791,770.07,770.03,6.01438]
[1609619517298,4.029,770.08,770.03,6.01438]
[1609619518299,2.6209,770.07,770.03,6.01438]
[1609619519599,0.07278157,770.16,770.03,6.01438]
[1609619520500,0.07278157,770.16,770.15,6.01438]
[1609619520700,0.0364073,770.18,770.15,6.01438]
[1609619521801,4.15,770.19,770.15,6.01438]
[1609619522001,0.03648481,770.38,770.15,6.01438]
[1609619522404,0.03649613,770.43,770.15,6.01438]
[1609619522603,0.03649613,770.43,770.37,6.01438]
[1609619523803,0.03649613,770.43,769.78,4.793]
[1609619524005,3.17249613,770.43,769.61,3.5]
[1609619524205,15.0,770.42,769.38,15.0]
[1609619524606,15.0,770.42,769.62,17.60864314]
[1609619524805,15.0,770.4,769.62,22.19164314]
[1609619525805,15.0,770.39,769.62,22.19164314]
[1609619526206,15.0,770.39,769.62,4.583]
[1609619526207,0.03641534,770.16,769.62,4.583]
[1609619526410,3.74441534,770.16,769.62,4.583]
[1609619526607,3.74441534,770.16,769.91,6.01438]
[1609619527407,3.708,770.16,769.91,6.01438]
[1609619527605,2.5962,770.15,769.91,6.01438]
[1609619527805,3.708,770.16,769.91,6.01438]
[1609619528608,3.708,770.16,770.15,6.01438]
[1609619528807,6.3437,770.16,770.15,6.01438]
[1609619529607,3.708,770.16,770.15,6.01438]
[1609619530608,6.3234,770.16,770.15,6.01438]
[1609619531006,3.708,770.16,770.15,6.01438]
[1609619531410,0.03644598,770.32,770.15,6.01438]
[1609619532008,0.03644598,770.32,770.17,104.3413]
[1609619532609,0.03644598,770.32,770.31,6.01438]
[1609619533410,2.5656,770.32,770.31,6.01438]
[1609619533809,0.03646098,770.43,770.31,6.01438]
[1609619534616,0.0365467,770.82,770.42,6.01438]
[1609619536313,0.03656026,770.85,770.42,6.01438]
[1609619536513,0.03656026,770.85,770.84,6.01438]
[1609619539216,2.66686026,770.85,770.84,6.01438]
[1609619539417,0.03656026,770.85,770.84,6.01438]
[1609619541018,0.03658335,770.95,770.84,6.01438]
[1609619541821,2.6191,770.94,770.84,6.01438]
[1609619542022,6.1001,770.94,770.84,6.01438]
[1609619542522,3.481,770.94,770.93,6.01438]
[1609619543623,6.077,770.94,770.93,6.01438]
[1609619543824,3.481,770.94,770.93,6.01438]
[1609619544422,0.03662217,771.0,770.93,21.53438]
[1609619544824,0.03662217,771.0,770.93,6.01438]
[1609619545425,0.03665962,771.14,770.93,6.01438]
[1609619546625,0.03665962,771.14,771.13,6.01438]
[1609619546826,0.03668048,771.23,771.13,6.01438]
[1609619547228,2.6315,771.22,771.13,6.01438]
[1609619547927,0.03668048,771.23,771.13,6.01438]
[1609619548625,0.03668048,771.23,771.22,6.01438]
[1609619548825,0.03668048,771.23,770.8,74.4437]
[1609619549028,2.6134,771.23,770.8,74.4437]
[1609619549227,4.244,771.24,770.8,74.4437]
[1609619549427,4.244,771.24,770.57,4.831]
[1609619549629,4.244,771.24,770.44,17.58688505]
[1609619550432,0.03669035,771.18,770.3,120.27508843]
[1609619550628,6.01438,771.13,770.96,6.01438]
[1609619551633,2.5993,771.12,770.96,6.01438]
[1609619552237,0.03665211,771.04,770.96,6.01438]
[1609619552436,4.01165211,771.04,770.96,6.01438]
[1609619552837,3.975,771.04,770.96,6.01438]
[1609619557543,3.821,771.08,770.96,6.01438]
[1609619558543,3.821,771.08,771.07,6.01438]
[1609619558744,6.4154,771.08,771.07,6.01438]
[1609619559345,3.821,771.08,771.07,6.01438]
[1609619560746,6.3835,771.08,771.07,6.01438]
[1609619561945,3.821,771.08,771.07,6.01438]
[1609619562747,4.244,771.24,771.07,6.01438]
[1609619562948,2.6204,771.23,771.07,6.01438]
[1609619563349,5.7014,771.23,771.07,6.01438]
[1609619563649,0.03675207,771.22,771.07,6.01438]
[1609619564550,3.11787058,771.23,771.07,6.01438]
[1609619564750,3.11787058,771.23,771.21,6.01438]
[1609619565151,0.03686872,771.22,771.21,6.01438]
[1609619565351,2.61106872,771.22,771.21,6.01438]
[1609619566552,0.03686872,771.22,771.21,6.01438]
[1609619566953,3.081,771.23,771.21,6.01438]
[1609619568352,0.03693428,771.25,771.21,6.01438]
[1609619568853,0.03697215,771.31,771.21,6.01438]
[1609619570253,0.03695031,771.25,771.21,6.01438]
[1609619570453,3.76795031,771.25,771.21,6.01438]
[1609619570854,3.731,771.25,771.21,6.01438]
[1609619572155,0.03697227,771.24,771.21,6.01438]
[1609619573957,3.731,771.25,771.21,6.01438]
[1609619574956,0.03702714,771.23,771.21,6.01438]
[1609619576057,0.03706217,771.22,771.21,6.01438]
[1609619576457,0.03706217,771.22,770.83,4.288]
[1609619576657,6.01438,771.08,770.67,6.01438]
[1609619577057,6.01438,771.08,770.65,3.821]
[1609619577261,6.01438,771.08,770.38,119.96678237]
[1609619577457,15.0,771.07,770.38,119.96678237]
[1609619577861,0.03708839,770.97,770.13,20.57242481]
[1609619578561,0.03704433,770.8,770.13,2.981]
[1609619578761,6.01438,770.77,770.47,6.01438]
[1609619579462,0.03704433,770.8,770.47,6.01438]
[1609619579664,0.03704433,770.8,770.47,9.95338]
[1609619580364,0.03703073,770.79,770.47,9.95338]
[1609619580763,0.03703073,770.79,770.57,6.01438]
[1609619582766,0.03703073,770.79,770.78,6.01438]
[1609619584477,0.03704054,770.81,770.78,6.01438]
[1609619585976,0.03704054,770.81,770.69,3.14]
[1609619586576,0.03704054,770.81,770.3,90.1305]
[1609619586776,0.03704054,770.81,770.8,6.01438]
[1609619589579,3.084,770.89,770.8,6.01438]
[1609619591482,0.03706475,770.9,770.3,90.1305]
[1609619591684,0.03702751,770.87,770.3,90.1305]
[1609619591883,3.51402751,770.87,770.3,90.1305]
[1609619592483,0.03699524,770.84,770.3,90.1305]
[1609619592883,0.03699524,770.84,770.75,6.01438]
[1609619593485,0.03700176,770.83,770.75,6.01438]
[1609619593886,0.03700295,770.85,770.75,6.01438]
[1609619594486,0.03700107,770.84,770.02,4.356]
[1609619594885,15.0,770.71,770.4,6.01438]
[1609619595085,18.957,770.71,770.4,6.01438]
[1609619595886,3.957,770.71,770.4,6.01438]
[1609619596289,0.03690897,770.62,770.4,6.01438]
[1609619596889,15.0,770.56,770.4,6.01438]
[1609619597591,15.0,770.54,770.02,4.356]
[1609619597791,19.766,770.54,770.02,4.356]
[1609619598695,0.03686375,770.32,770.02,4.356]
[1609619598892,15.0,770.06,770.02,4.356]
[1609619599293,15.0,770.06,769.85,6.01438]
[1609619600492,6.01438,770.07,769.85,6.01438]
[1609619600893,6.01438,770.07,769.98,6.01438]
[1609619601493,0.03677105,770.16,769.98,6.01438]
[1609619601693,3.82771046,770.28,769.98,6.01438]
[1609619601694,0.03679346,770.25,769.98,6.01438]
[1609619601893,0.03679346,770.25,769.77,4.262]
[1609619602895,6.01438,770.21,769.89,6.01438]
[1609619604899,6.01438,770.12,769.89,6.01438]
[1609619605099,6.01438,770.12,769.77,4.262]
[1609619605499,0.03686813,770.23,769.77,4.262]
[1609619605899,0.03686813,770.23,769.33,15.0]
[1609619605900,3.49690789,770.28,769.42,17.60456212]
[1609619606099,3.49690789,770.28,769.42,22.44156212]
[1609619606402,3.46,770.28,769.46,17.60404911]
[1609619606803,6.01438,770.23,770.09,6.01438]
[1609619607401,3.145,770.26,770.09,6.01438]
[1609619608802,3.145,770.26,769.84,3.85]
[1609619609002,3.145,770.26,770.02,6.01438]
[1609619610906,3.145,770.26,770.25,6.01438]
[1609619611506,0.03691497,770.4,770.25,6.01438]
[1609619611910,0.03709736,770.63,770.25,6.01438]
[1609619612908,0.03709736,770.63,770.57,6.01438]
[1609619613309,0.03712464,770.62,770.57,6.01438]
[1609619614908,0.03715344,770.65,770.57,6.01438]
[1609619616810,0.03719399,770.76,770.57,6.01438]
[1609619617210,2.5916,770.75,770.57,6.01438]
[1609619617710,0.03719399,770.76,770.57,6.01438]
[1609619617911,3.84893988,770.87,770.57,6.01438]
[1609619617912,3.477,770.87,770.57,6.01438]
[1609619618209,4.06632675,770.91,770.57,6.01438]
[1609619618611,19.029,770.91,770.57,6.01438]
[1609619619016,19.029,770.91,770.78,6.01438]
[1609619619716,0.03737203,770.87,770.78,6.01438]
[1609619619913,15.0,770.86,770.37,4.874]
[1609619620114,15.0,770.84,770.37,4.874]
[1609619620715,0.14936795,770.81,770.37,4.874]
[1609619620914,0.14936795,770.81,770.52,6.01438]
[1609619621915,0.14936795,770.81,770.18,3.932]
[1609619622317,0.03751417,770.6,770.18,3.932]
[1609619622514,4.48351417,770.6,770.18,3.932]
[1609619622715,15.0,770.59,770.18,3.932]
[1609619622917,15.0,770.4,770.36,6.01438]
[1609619623318,0.03745649,770.37,770.36,6.01438]
[1609619624519,0.14973782,770.37,770.36,6.01438]
[1609619625120,0.37815422,770.38,770.01,3.069]
[1609619625321,0.37815422,770.38,769.74,75.9083]
[1609619626222,0.03780666,770.23,769.74,75.9083]
[1609619626923,0.03780666,770.23,770.13,6.01438]
[1609619627525,0.03780666,770.23,770.01,3.296]
[1609619627927,2.5605,770.22,770.01,3.296]
[1609619628524,15.0,770.21,770.01,3.296]
[1609619628924,6.01438,770.08,770.01,3.296]
[1609619629325,6.01438,770.08,769.75,6.01438]
[1609619630526,21.01438,770.08,769.75,6.01438]
[1609619630927,15.0,769.94,769.75,6.01438]
[1609619631627,90.0766,769.76,769.46,17.60658791]
[1609619632231,90.0766,769.76,769.26,17.61304643]
[1609619632632,75.0766,769.76,769.26,17.61304643]
[1609619632831,90.0766,769.76,769.26,17.61304643]
[1609619633031,6.01438,769.57,769.41,6.01438]
[1609619633231,9.43238,769.57,769.41,6.01438]
[1609619634535,9.43238,769.57,768.96,107.6173]
[1609619634935,6.01438,769.41,769.18,6.01438]
[1609619635535,3.418,769.57,769.18,6.01438]
[1609619636939,6.01438,769.4,769.18,6.01438]
[1609619638745,15.0,769.39,769.18,6.01438]
[1609619638941,6.01438,769.19,769.18,6.01438]
[1609619641145,4.745,769.2,769.18,6.01438]
[1609619644347,4.222,769.41,769.18,6.01438]
[1609619644547,83.0172,769.53,769.18,6.01438]
[1609619644948,83.05488011,769.53,769.18,6.01438]
[1609619645148,6.01438,769.42,769.18,6.01438]
[1609619647049,0.03765756,769.45,769.38,6.01438]
[1609619647651,0.0375761,769.46,769.38,6.01438]
[1609619649053,6.01438,769.49,769.38,6.01438]
[1609619651155,6.01438,769.49,769.48,6.01438]
[1609619651754,0.0375821,769.51,769.48,6.01438]
[1609619652155,0.15085984,769.52,769.48,6.01438]
[1609619653364,0.03777374,769.52,769.48,6.01438]
[1609619654362,0.03777374,769.52,768.98,78.2018]
[1609619654564,0.03780521,769.53,768.98,78.2018]
[1609619654963,15.0,769.51,768.77,17.61876329]
[1609619655164,6.01438,769.42,769.39,6.01438]
[1609619655766,6.01438,769.42,768.76,4.873]
[1609619656065,6.01438,769.42,768.69,17.61967008]
[1609619656267,0.1511885,769.41,768.58,17.61944206]
[1609619656466,4.2071885,769.41,768.58,17.61944206]
[1609619657067,4.2071885,769.41,769.39,6.01438]
[1609619658073,4.056,769.41,769.39,6.01438]
[1609619658373,4.056,769.41,768.84,3.407]
[1609619658671,19.056,769.41,768.84,3.407]
[1609619658871,4.056,769.41,768.84,3.407]
[1609619659072,4.4368959,769.41,769.34,6.01438]
[1609619659473,0.03810927,769.38,769.34,6.01438]
[1609619663075,4.056,769.41,769.34,6.01438]
[1609619663276,0.38109265,769.5,769.34,6.01438]
[1609619663679,0.03825003,769.46,769.34,21.01438]
[1609619665079,0.03819755,769.77,769.45,6.01438]
[1609619665278,0.03819755,769.77,769.46,15.0]
[1609619666579,0.03827204,770.06,769.46,15.0]
[1609619667179,0.03827204,770.06,770.05,6.01438]
[1609619667581,0.03838702,770.15,770.05,6.01438]
[1609619668481,0.03842877,770.21,770.05,6.01438]
[1609619669080,0.03842877,770.21,770.2,6.01438]
[1609619669482,0.03843625,770.3,770.2,6.01438]
[1609619670380,0.03843625,770.3,769.94,4.457]
[1609619670582,4.26343625,770.3,769.94,4.457]
[1609619670794,0.03835967,770.25,769.94,4.457]
[1609619670981,0.03835967,770.25,769.77,3.038]
[1609619671180,6.05273967,770.25,769.77,3.038]
[1609619671783,0.03820105,770.04,769.77,3.038]
[1609619672484,0.03820105,770.04,769.62,81.462]
[1609619673085,0.03820105,770.04,770.03,6.01438]
[1609619673289,0.03820105,770.04,769.68,2.974]
[1609619673490,0.03817604,769.97,769.68,2.974]
[1609619674291,0.03814501,769.94,769.68,2.974]
[1609619675190,15.0,769.73,769.68,2.974]
[1609619675392,6.01438,769.74,769.68,2.974]
[1609619677091,6.01438,769.74,769.73,6.01438]
[1609619677491,0.38068519,769.76,769.73,6.01438]
[1609619678195,0.76137038,769.8,769.73,6.01438]
[1609619678393,0.0380974,769.78,769.73,6.01438]
[1609619679196,0.0381423,769.93,769.73,6.01438]
[1609619679996,0.03809212,769.75,769.73,6.01438]
[1609619680597,0.03792003,769.95,769.73,6.01438]
[1609619681198,0.03792003,769.95,769.81,6.01438]
[1609619681603,0.03792003,769.95,769.68,2.974]
[1609619681801,0.03792003,769.95,769.45,3.393]
[1609619682001,0.03792003,769.95,769.21,17.60836665]
[1609619682402,0.03789071,769.82,769.07,32.60964538]
[1609619683301,0.03789071,769.82,769.53,6.01438]
[1609619683703,0.03789071,769.82,769.53,9.56738]
[1609619683903,0.03789038,769.81,769.53,9.56738]
[1609619685204,0.03789038,769.81,769.77,6.01438]
[1609619685403,0.03789038,769.81,769.53,3.553]
[1609619686504,0.37890381,769.92,769.53,3.553]
[1609619686505,0.03786596,769.73,769.53,3.553]
[1609619687205,0.03786596,769.73,769.72,6.01438]
[1609619687807,0.03788262,769.78,769.72,6.01438]
[1609619688510,0.03788262,769.78,769.53,3.553]
[1609619688908,0.03788262,769.78,769.07,76.9847]
[1609619689107,15.0,769.76,769.07,76.9847]
[1609619689311,15.0,769.73,769.62,6.01438]
[1609619689507,6.01438,769.74,769.62,6.01438]
[1609619690109,0.03784233,769.71,769.62,6.01438]
[1609619691210,0.03784233,769.71,769.7,6.01438]
[1609619691411,0.07567051,769.71,769.7,6.01438]
[1609619692511,0.07567051,769.71,769.6,4.63]
[1609619692912,4.029,769.77,769.6,4.63]
[1609619693211,4.029,769.77,769.67,6.01438]
[1609619693811,19.029,769.77,769.67,6.01438]
[1609619694013,19.029,769.77,769.6,4.63]
[1609619694014,0.03783923,769.76,769.6,4.63]
[1609619694713,0.03783923,769.76,769.16,93.4396]
[1609619695112,0.03783846,769.72,769.16,93.4396]
[1609619695311,0.03783846,769.72,769.65,6.01438]
[1609619695913,0.03783625,769.71,769.65,6.01438]
[1609619696214,0.03783625,769.71,769.6,3.126]
[1609619696414,0.07567249,769.75,769.6,3.126]
[1609619696615,0.03784312,769.73,769.26,3.936]
[1609619696817,15.0,769.65,769.26,3.936]
[1609619697216,6.01438,769.62,769.31,6.01438]
[1609619697416,15.15118679,769.61,769.31,6.01438]
[1609619698916,15.15118679,769.61,768.77,17.61661352]
[1609619699216,15.15118679,769.61,768.76,84.4931]
[1609619699217,0.03779027,769.49,769.43,6.01438]
[1609619700518,0.07542549,769.45,769.43,6.01438]
[1609619701217,6.01438,769.44,769.43,6.01438]
[1609619701420,21.01438,769.44,769.43,6.01438]
[1609619701621,32.25708,769.44,768.66,17.6178082]
[1609619701820,21.01438,769.44,768.66,17.6178082]
[1609619702021,15.0,769.29,768.66,17.6178082]
[1609619703221,6.01438,769.26,768.92,6.01438]
[1609619703421,15.0,769.25,768.92,6.01438]
[1609619704622,15.0,769.25,768.61,17.62289503]
[1609619704823,0.03768068,769.16,768.41,75.1964]
[1609619705227,0.03768068,769.16,769.08,6.01438]
[1609619705423,0.03768068,769.16,768.86,3.245]
[1609619705725,15.5662,769.14,768.86,3.245]
[1609619705924,15.0,769.13,768.86,3.245]
[1609619706125,0.03767266,769.1,768.86,3.245]
[1609619706728,0.03767266,769.1,768.41,75.1964]
[1609619707127,0.03760714,768.88,768.41,75.1964]
[1609619707326,0.03760714,768.88,768.6,6.01438]
[1609619707327,6.01438,768.67,768.6,6.01438]
[1609619708129,0.37607139,769.0,768.6,6.01438]
[1609619708130,0.03760572,768.86,768.6,6.01438]
[1609619709229,6.01438,768.7,768.58,4.143]
[1609619710233,15.0,768.69,768.58,4.143]
[1609619711233,15.0,768.68,768.6,6.01438]
[1609619711632,0.03751431,768.81,768.6,6.01438]
[1609619711633,15.0,768.79,768.6,6.01438]
[1609619712033,0.0375174,768.75,768.6,6.01438]
[1609619712532,0.0375174,768.75,768.58,4.143]
[1609619713333,0.0375174,768.75,768.74,6.01438]
[1609619713535,0.03753389,768.77,768.74,6.01438]
[1609619714735,15.0,768.9,768.74,6.01438]
[1609619715134,21.01438,768.91,768.74,6.01438]
[1609619715335,21.01438,768.91,768.86,6.01438]
[1609619715837,0.03768421,768.9,768.86,6.01438]
[1609619716038,0.03768421,768.9,768.58,4.143]
[1609619716238,0.03768421,768.9,768.15,86.3124]
[1609619716440,0.03768421,768.9,768.16,15.0]
[1609619716640,0.03768421,768.9,768.16,18.019]
[1609619717441,0.03768421,768.9,768.89,6.01438]
[1609619717846,0.03775358,769.01,768.89,6.01438]
[1609619718045,0.03775358,769.01,768.9,15.0]
[1609619719448,0.03775358,769.01,769.0,21.01438]
[1609619719649,0.03775358,769.01,769.0,25.94138]
[1609619720554,0.15101432,769.08,769.0,25.94138]
[1609619720555,0.03780771,769.26,769.0,25.94138]
[1609619720752,0.03780771,769.26,769.0,38.10158]
[1609619721355,0.03784327,769.59,769.25,6.01438]
[1609619721553,0.03784327,769.59,769.25,9.78138]
[1609619722355,0.03784327,769.59,769.26,15.0]
[1609619722956,0.03784327,769.59,769.25,9.78138]
[1609619723355,0.03784327,769.59,769.47,6.01438]
[1609619724357,0.03797436,769.62,769.47,6.01438]
[1609619725359,0.03797436,769.62,769.61,6.01438]
[1609619725662,0.03802509,769.64,769.61,6.01438]
[1609619726262,0.03802906,769.67,769.61,6.01438]
[1609619727061,0.07600714,769.62,769.61,6.01438]
[1609619727261,4.62800714,769.62,769.61,6.01438]
[1609619727662,4.552,769.62,769.61,6.01438]
[1609619731365,4.552,769.62,769.61,21.01438]
[1609619731967,4.552,769.62,769.61,6.01438]
[1609619732167,0.37984458,769.63,769.61,6.01438]
[1609619732370,0.38041521,769.64,769.61,6.01438]
[1609619733372,0.03852951,769.79,769.5,3.303]
[1609619733770,0.03852951,769.79,769.44,6.01438]
[1609619734170,0.03848115,769.58,769.44,6.01438]
[1609619734770,0.03848115,769.58,769.25,3.767]
[1609619734969,0.03848115,769.58,768.89,17.61622373]
[1609619735169,4.029,769.57,768.89,17.61622373]
[1609619735373,6.01438,769.36,769.32,6.01438]
[1609619735570,9.14938,769.36,769.32,6.01438]
[1609619735770,9.14938,769.36,768.89,17.61622373]
[1609619737071,15.0,769.35,768.89,17.61622373]
[1609619737472,6.01438,769.09,768.91,6.01438]
[1609619739374,4.121,769.11,769.08,6.01438]
[1609619739774,0.07723337,769.1,769.08,6.01438]
[1609619740175,0.77233374,769.22,769.09,15.0]
[1609619740374,3.927,769.2,769.09,15.0]
[1609619740775,0.03863365,769.19,769.09,15.0]
[1609619741174,0.03863365,769.19,769.08,6.01438]
[1609619741375,0.03874591,769.5,769.18,6.01438]
[1609619741575,0.03874591,769.5,769.18,9.29738]
[1609619742176,0.03877389,769.62,769.18,9.29738]
[1609619743375,0.03877032,769.61,769.18,3.283]
[1609619744775,4.175,769.7,769.18,3.283]
[1609619744976,0.03875882,769.57,769.18,3.283]
[1609619745375,0.03875882,769.57,769.56,6.01438]
[1609619745976,0.03863768,769.68,769.56,6.01438]
[1609619746977,0.03857327,769.66,769.56,6.01438]
[1609619747380,0.03857327,769.66,769.65,6.01438]
[1609619747776,6.01438,769.69,769.34,3.59]
[1609619747975,21.01438,769.69,769.34,3.59]
[1609619748477,21.01438,769.69,769.18,3.283]
[1609619748679,0.03859287,769.58,768.9,17.61993709]
[1609619749478,0.03859287,769.58,769.57,6.01438]
[1609619749879,0.77128519,769.61,769.57,6.01438]
[1609619750480,0.77128519,769.61,769.19,74.1481]
[1609619751386,0.77128519,769.61,769.6,6.01438]
[1609619751786,0.77128519,769.61,769.03,4.52]
[1609619753582,15.0,769.5,769.3,6.01438]
[1609619753983,18.45,769.5,769.3,6.01438]
[1609619754585,18.45,769.5,769.03,4.52]
[1609619754786,18.45,769.5,768.94,87.8552]
[1609619755194,3.45,769.5,768.94,87.8552]
[1609619755397,0.7748685,769.41,768.94,87.8552]
[1609619755785,0.7748685,769.41,768.81,4.857]
[1609619755985,0.7748685,769.41,768.6,17.62498738]
[1609619757487,6.01438,769.21,769.0,6.01438]
[1609619757688,15.0,769.2,769.0,6.01438]
[1609619757889,15.0,769.2,768.6,17.62498738]
[1609619758789,9.92038,769.21,768.6,17.62498738]
[1609619758990,9.92038,769.21,768.6,21.18698738]
[1609619759190,9.92038,769.21,768.67,17.62548534]
[1609619759388,24.92038,769.21,768.67,17.62548534]
[1609619760290,0.03872986,769.07,768.6,3.562]
[1609619760890,0.03897575,769.01,768.6,3.562]
[1609619761490,6.01438,768.92,768.68,6.01438]
[1609619761991,4.118,768.92,768.68,6.01438]
[1609619763191,4.118,768.92,768.69,15.0]
[1609619763491,4.118,768.92,768.91,6.01438]
[1609619763691,0.03896329,768.99,768.91,6.01438]
[1609619764092,0.03899186,769.11,768.91,6.01438]